bitfinex/quotes_ETHUSD_20251009
["timestamp","ask_amount","ask_price","bid_price","bid_amount"]
[1760023512728,3.95259834,4325.2,4325.1,0.006]
[1760023514243,4.58619834,4325.2,4325.1,0.006]
[1760023514442,4.58619834,4325.2,4324.1,0.005]
[1760023514443,4.23208526,4325.1,4324.1,0.005]
[1760023514663,0.6336,4324.6,4324.1,0.005]
[1760023514865,2.31232884,4324.7,4324.1,0.005]
[1760023514866,0.02216332,4324.5,4324.1,0.005]
[1760023515269,2.31229224,4324.8,4324.4,0.1152]
[1760023515469,2.33446869,4324.7,4324.4,0.1152]
[1760023515678,0.02216332,4324.7,4324.4,0.1152]
[1760023515842,0.02216332,4325.1,4324.4,0.2768]
[1760023516279,2.31211114,4325.1,4324.4,0.53623595]
[1760023516478,0.02216332,4325.0,4324.4,2.84867454]
[1760023516646,0.02216332,4325.0,4324.4,0.53623595]
[1760023516848,0.02216332,4325.1,4324.4,0.53623595]
[1760023517059,0.56130384,4325.8,4324.4,0.53623595]
[1760023517060,2.31203181,4325.2,4325.1,0.001]
[1760023517984,0.02216332,4325.3,4325.1,0.001]
[1760023518278,3.2769738,4326.1,4325.1,0.001]
[1760023518478,2.31198773,4325.3,4325.1,0.001]
[1760023518685,0.2337,4325.8,4325.1,0.001]
[1760023518686,2.33419513,4325.2,4325.1,0.001]
[1760023518850,0.02216332,4325.2,4325.1,0.001]
[1760023519256,2.31202257,4325.3,4325.1,0.001]
[1760023519479,2.33419513,4325.2,4325.1,0.001]
[1760023520048,0.02216332,4325.2,4325.1,0.001]
[1760023520783,0.62001465,4326.5,4325.1,0.001]
[1760023520950,2.31097702,4327.2,4325.1,5.3818]
[1760023520951,0.02216332,4326.1,4325.1,5.3818]
[1760023521277,2.31187727,4325.5,4325.1,5.105]
[1760023521481,2.31187468,4325.5,4325.1,5.105]
[1760023521780,0.47016332,4326.1,4325.2,0.2768]
[1760023521781,2.31171823,4325.8,4325.2,0.2768]
[1760023522085,0.02216332,4326.1,4325.2,2.31203181]
[1760023522271,2.31177712,4325.7,4325.1,5.6155]
[1760023522470,3.01568788,4325.6,4325.1,0.001]
[1760023522670,0.448,4325.5,4325.1,0.001]
[1760023522869,2.31203181,4325.2,4325.1,0.001]
[1760023523059,2.33419513,4325.2,4325.1,0.001]
[1760023523461,0.02216332,4325.2,4325.1,0.001]
[1760023523689,0.02216332,4325.8,4325.1,0.001]
[1760023523866,0.002,4326.2,4325.2,6.6]
[1760023524187,0.002,4326.2,4325.3,1.20498]
[1760023524361,0.02416332,4326.2,4325.3,1.20498]
[1760023524566,0.002,4326.2,4325.3,1.20498]
[1760023524768,0.02416332,4326.2,4325.6,2.3117832]
[1760023524952,0.002,4326.2,4325.7,2.31175304]
[1760023525156,0.002,4326.2,4326.1,0.1384]
[1760023525386,0.002,4326.2,4326.1,4.5124]
[1760023525586,0.002,4326.2,4326.1,4.374]
[1760023525786,0.002,4326.2,4326.1,0.1152]
[1760023525992,2.31353918,4326.2,4326.1,0.1152]
[1760023526392,2.77824974,4326.2,4326.1,0.1152]
[1760023526589,2.31082499,4326.0,4325.8,0.1152]
[1760023526793,0.02216332,4325.9,4325.8,0.1152]
[1760023526970,0.02216332,4325.9,4324.2,0.2768]
[1760023526971,0.448,4325.9,4324.2,0.2768]
[1760023527176,2.31203181,4325.2,4324.4,2.404]
[1760023527371,2.83014969,4325.2,4324.4,2.404]
[1760023527979,2.83014969,4325.2,4324.4,4.71644382]
[1760023528176,0.49595456,4325.2,4324.6,0.2768]
[1760023528377,2.31203181,4325.2,4324.6,0.2768]
[1760023528577,2.31203181,4325.2,4324.4,2.404]
[1760023528901,2.33419513,4325.2,4324.4,2.404]
[1760023529209,3.29515129,4325.2,4324.1,0.005]
[1760023529577,0.98311948,4325.2,4324.3,0.2768]
[1760023529895,2.83053593,4325.2,4324.3,0.2768]
[1760023531710,2.83053593,4325.2,4324.5,2.404]
[1760023532267,0.51850412,4325.2,4324.5,2.404]
[1760023532481,2.83053593,4325.2,4324.4,2.31244588]
[1760023532682,2.83053593,4325.2,4324.5,4.724]
[1760023533674,3.29393593,4325.2,4324.1,4.205]
[1760023534190,0.51850412,4325.2,4324.1,4.205]
[1760023534376,0.4963408,4325.2,4324.4,0.2768]
[1760023534576,0.4963408,4325.2,4324.5,0.02312406]
[1760023534803,0.79413625,4325.9,4324.1,6.51760026]
[1760023534804,0.62001465,4325.9,4325.1,0.2778]
[1760023535012,0.49766209,4325.8,4325.5,2.31185438]
[1760023535316,0.49766209,4325.7,4325.6,0.2768]
[1760023535509,0.002,4326.2,4325.7,2.31172296]
[1760023535714,0.49754584,4326.1,4325.8,6.8728]
[1760023535927,0.49754584,4326.0,4325.8,6.596]
[1760023536132,0.002,4326.2,4325.9,1.3152]
[1760023536575,0.002,4326.2,4325.9,0.1384]
[1760023536779,0.002,4326.2,4326.0,4.1628]
[1760023536975,0.002,4326.2,4326.1,0.1152]
[1760023537377,0.002,4326.2,4326.1,6.988]
[1760023537975,0.002,4326.2,4326.1,6.7112]
[1760023538175,2.31349738,4326.2,4326.1,6.7112]
[1760023538429,0.002,4326.2,4326.1,6.7112]
[1760023538891,0.002,4326.2,4326.1,0.1152]
[1760023539282,0.002,4326.2,4326.1,0.1383155]
[1760023539517,0.002,4326.2,4326.1,0.392]
[1760023539895,0.002,4326.2,4326.1,1.19958103]
[1760023540091,0.002,4326.2,4326.1,0.4151155]
[1760023540292,0.002,4326.2,4326.1,1.89]
[1760023540793,0.002,4326.2,4326.1,11.72366631]
[1760023541114,0.002,4326.2,4326.1,11.70055081]
[1760023541615,0.002,4326.2,4326.1,13.62055081]
[1760023541920,0.002,4326.2,4326.1,15.32009408]
[1760023541921,0.00044929,4326.2,4326.1,15.32009408]
[1760023543485,0.00044929,4326.2,4326.1,24.81889408]
[1760023545617,0.00044929,4326.2,4326.1,6.20789408]
[1760023545815,0.00044929,4326.2,4326.1,23.20983347]
[1760023545988,0.00044929,4326.2,4326.1,2.68083347]
[1760023546187,0.00044929,4326.2,4326.1,21.19635081]
[1760023548126,0.00044929,4326.2,4326.1,24.54635081]
[1760023548824,0.00044929,4326.2,4326.1,25.17995081]
[1760023549010,0.00044929,4326.2,4326.1,27.70447778]
[1760023549210,0.002,4327.5,4327.4,2.3108564]
[1760023549390,0.002,4327.5,4327.4,11.3078564]
[1760023549590,0.0012,4327.5,4327.4,11.5846564]
[1760023549812,0.0012,4327.5,4327.4,12.97421524]
[1760023550019,0.0012,4327.5,4327.4,1.66635884]
[1760023550216,0.0012,4327.5,4327.4,11.5836564]
[1760023550628,0.0012,4327.5,4327.4,9.2728]
[1760023550829,0.0012,4327.5,4325.5,2.31185469]
[1760023550830,0.0012,4327.5,4326.8,0.2768]
[1760023551134,0.0012,4327.5,4326.9,3.542]
[1760023551135,2.31086435,4327.4,4326.9,3.542]
[1760023551438,0.0012,4327.5,4325.9,0.1384]
[1760023551439,2.3111096,4327.0,4326.1,0.2768]
[1760023551730,0.0012,4327.5,4326.2,8.998]
[1760023551731,0.02216332,4327.1,4326.2,8.998]
[1760023551905,0.02336332,4327.5,4326.3,8.998]
[1760023552108,2.31092694,4327.3,4326.3,9.2748]
[1760023552434,0.0012,4327.5,4326.4,0.2768]
[1760023552435,2.3108564,4327.4,4326.4,0.2768]
[1760023552738,2.31100801,4327.2,4326.4,2.58818454]
[1760023553027,0.0012,4327.5,4326.4,2.5881596]
[1760023553238,2.31086971,4327.4,4326.6,2.31125678]
[1760023553538,2.33417877,4327.5,4327.4,0.1152]
[1760023555567,0.02336332,4327.5,4327.4,0.1152]
[1760023555772,0.0012,4327.5,4327.4,2.61076496]
[1760023556064,0.0012,4327.5,4327.4,2.7028564]
[1760023556263,0.0012,4327.5,4327.4,4.95462685]
[1760023556564,0.0012,4327.5,4327.4,2.64377045]
[1760023557263,0.0012,4327.5,4327.4,4.95462685]
[1760023558332,0.0012,4327.5,4327.4,5.0470924]
[1760023560670,0.0012,4327.5,4327.4,23.6530924]
[1760023562087,0.005,4327.9,4327.8,2.31064282]
[1760023562291,1e-08,4327.9,4327.8,12.03157886]
[1760023562478,1e-08,4327.9,4327.8,12.30837886]
[1760023562673,1e-08,4327.9,4327.8,4.96957886]
[1760023562982,1e-08,4327.9,4327.8,23.57357886]
[1760023563409,1e-08,4327.9,4327.8,24.20717886]
[1760023563558,1e-08,4327.9,4327.8,24.47993538]
[1760023563756,1e-08,4327.9,4327.8,24.20717886]
[1760023564496,0.005,4328.9,4328.4,2.3103206]
[1760023564663,0.005,4328.9,4328.8,2.31010903]
[1760023565171,0.005,4328.9,4328.8,21.18890903]
[1760023565764,0.005,4328.9,4328.8,18.8788]
[1760023565964,0.005,4328.9,4328.8,21.18890903]
[1760023566166,0.005,4328.9,4328.8,0.2768]
[1760023566482,0.005,4328.9,4328.8,11.57690903]
[1760023566989,0.005,4328.9,4328.8,13.82867948]
[1760023569499,0.005,4328.9,4328.8,2.52857045]
[1760023569711,0.005,4328.9,4328.8,11.57290903]
[1760023570101,0.005,4328.9,4328.8,9.2628]
[1760023570403,0.005,4328.9,4328.8,11.57290903]
[1760023570974,0.005,4328.9,4328.8,9.2628]
[1760023571400,0.005,4328.9,4328.8,11.57290903]
[1760023572101,0.005,4328.9,4328.8,13.82467948]
[1760023572697,0.0042,4328.9,4328.8,13.93987948]
[1760023573713,0.0042,4328.9,4328.8,2.794]
[1760023573889,0.0042,4328.9,4328.8,0.392]
[1760023574209,0.0042,4328.9,4328.8,7.3952]
[1760023574798,0.0042,4328.9,4328.8,7.672]
[1760023575389,0.0062,4328.9,4328.8,7.672]
[1760023575579,0.0062,4328.9,4328.8,0.1152]
[1760023575788,0.0062,4328.9,4328.8,6.6962]
[1760023576427,0.0062,4328.9,4328.8,6.973]
[1760023576984,0.0062,4328.9,4328.8,6.6962]
[1760023577396,0.0062,4328.9,4328.8,6.973]
[1760023579530,0.0062,4328.9,4328.8,9.28310903]
[1760023579704,0.0062,4328.9,4328.8,10.45161993]
[1760023580743,0.0062,4328.9,4328.8,11.07041906]
[1760023581293,0.0062,4328.9,4328.8,4.48941906]
[1760023581494,0.0062,4328.9,4328.8,21.79470816]
[1760023583256,0.0062,4328.9,4328.8,0.2768]
[1760023583407,0.0062,4328.9,4328.8,9.2558]
[1760023583610,0.0062,4328.9,4328.3,9.608]
[1760023583611,0.0062,4328.9,4327.6,0.2768]
[1760023583816,0.0062,4328.9,4327.3,2.402]
[1760023583817,2.3107131,4327.7,4327.3,2.402]
[1760023584014,0.61879913,4328.6,4326.8,2.31114713]
[1760023584015,2.31063223,4327.9,4327.4,2.402]
[1760023584341,2.31063223,4327.9,4327.5,4.6448]
[1760023584342,0.49616425,4327.8,4327.5,4.6448]
[1760023584515,2.3107496,4327.6,4327.5,4.368]
[1760023584710,2.80691385,4327.6,4327.5,4.368]
[1760023585293,0.49616425,4327.6,4327.5,4.368]
[1760023585744,2.80691385,4327.6,4327.5,4.368]
[1760023586151,3.42571298,4327.6,4327.5,4.368]
[1760023586364,2.80691385,4327.6,4327.5,4.368]
[1760023586518,0.49616425,4327.6,4327.5,4.368]
[1760023588636,0.49616425,4327.6,4327.5,6.678803]
[1760023588820,0.61879913,4328.5,4327.5,5.34948]
[1760023589150,2.31037888,4328.3,4327.6,2.31070326]
[1760023589449,0.49621125,4328.2,4327.7,0.2768]
[1760023589616,2.92896865,4328.7,4327.8,2.61053389]
[1760023589945,0.02836332,4328.9,4327.9,6.577]
[1760023589946,0.49612557,4328.6,4327.9,6.577]
[1760023590147,0.49612557,4328.5,4327.9,6.577]
[1760023590312,0.49612557,4328.4,4327.9,6.577]
[1760023590513,2.31021644,4328.6,4328.0,0.2768]
[1760023590514,2.31027708,4328.5,4328.0,0.2768]
[1760023590725,0.0062,4328.9,4328.1,0.02310482]
[1760023590726,0.49612847,4328.4,4328.1,0.02310482]
[1760023590946,0.02836332,4328.9,4328.2,2.6788]
[1760023591108,0.49609671,4328.8,4328.2,2.6788]
[1760023591308,0.49609671,4328.7,4328.2,2.6788]
[1760023591649,0.0062,4328.9,4328.8,0.1152]
[1760023591843,0.50226863,4328.9,4328.8,6.6912]
[1760023592342,0.0062,4328.9,4328.8,6.6912]
[1760023592544,0.0062,4328.9,4328.8,6.968]
[1760023592947,0.0062,4328.9,4328.8,6.6912]
[1760023594242,0.0062,4328.9,4328.8,0.1162]
[1760023594443,2.31625567,4328.9,4328.8,6.6922]
[1760023594630,0.0062,4328.9,4328.8,6.969]
[1760023595031,0.0062,4328.9,4328.8,6.6922]
[1760023595620,0.0062,4328.9,4328.8,6.969]
[1760023595816,0.0054,4328.9,4328.8,6.969]
[1760023596941,0.0054,4328.9,4328.8,9.0922]
[1760023598026,0.0054,4328.9,4328.8,9.369]
[1760023598231,0.0054,4328.9,4328.8,10.3059]
[1760023598449,0.0054,4328.9,4328.8,9.369]
[1760023599877,0.0054,4328.9,4328.8,6.6892]
[1760023600166,0.0054,4328.9,4328.8,9.0912]
[1760023600840,0.0054,4328.9,4328.8,9.368]
[1760023601732,0.0054,4328.9,4328.8,9.0912]
[1760023603260,0.0054,4328.9,4328.8,9.368]
[1760023603465,0.0054,4328.9,4328.8,10.9889]
[1760023603671,0.0054,4328.9,4328.8,9.0912]
[1760023604269,0.0054,4328.9,4328.8,9.368]
[1760023604437,0.0054,4328.9,4328.8,11.67810903]
[1760023611273,0.0054,4328.9,4328.8,9.368]
[1760023611970,0.0054,4328.9,4328.8,11.67810903]
[1760023612189,0.0054,4328.9,4328.8,13.92987948]
[1760023613271,0.0054,4328.9,4328.8,11.34297045]
[1760023613474,0.0054,4328.9,4328.8,11.61977045]
[1760023614086,0.0054,4328.9,4328.8,13.92987948]
[1760023614796,0.0054,4328.9,4328.8,13.65307948]
[1760023614991,0.0054,4328.9,4328.8,13.92987948]
[1760023615493,0.0054,4328.9,4328.8,11.61977045]
[1760023615712,0.0054,4328.9,4328.8,13.92987948]
[1760023616000,0.0054,4328.9,4328.8,9.0912]
[1760023618894,0.0046,4328.9,4328.8,9.0912]
[1760023619328,0.50277047,4328.9,4328.8,9.0912]
[1760023619773,0.50277047,4328.9,4328.8,9.368]
[1760023620607,0.0046,4328.9,4328.8,9.0912]
[1760023620778,0.50295432,4328.9,4328.8,9.0912]
[1760023620980,0.50295432,4328.9,4328.8,0.1162]
[1760023620981,3.09430428,4328.9,4328.8,0.1162]
[1760023621313,3.88844053,4328.9,4328.8,0.001]
[1760023621608,3.09430428,4328.9,4328.8,0.001]
[1760023622104,3.56530428,4328.9,4328.8,0.001]
[1760023622507,3.5874676,4328.9,4328.8,0.001]
[1760023623407,3.5874676,4328.9,4328.3,0.001]
[1760023623408,2.31010903,4328.8,4328.3,0.001]
[1760023623581,2.94392252,4328.4,4328.3,0.001]
[1760023623779,5.38444016,4328.4,4328.3,0.001]
[1760023624007,5.36227684,4328.4,4328.3,0.001]
[1760023624216,5.83327684,4328.4,4328.3,0.001]
[1760023625403,7.07688904,4328.4,4328.3,0.001]
[1760023625707,8.17018927,4328.4,4328.3,0.001]
[1760023626213,6.92657707,4328.4,4328.3,0.001]
[1760023629820,2.94418943,4327.9,4327.8,1e-08]
[1760023630017,25.99618339,4327.9,4327.8,1e-08]
[1760023630219,26.44502007,4327.9,4327.8,1e-08]
[1760023630424,27.96540969,4327.9,4327.8,1e-08]
[1760023630590,26.72631436,4327.9,4327.8,1e-08]
[1760023630792,17.75231436,4327.9,4327.8,1e-08]
[1760023631119,26.72731436,4327.9,4327.8,1e-08]
[1760023631823,2.94488368,4326.6,4326.5,0.001]
[1760023632123,12.93284737,4326.6,4326.5,0.001]
[1760023632323,13.04897467,4326.6,4326.5,0.001]
[1760023632498,13.6681283,4326.6,4326.5,0.001]
[1760023633639,6.47597467,4326.6,4326.5,0.001]
[1760023633826,13.04897467,4326.6,4326.5,0.001]
[1760023634034,5.478438,4326.6,4326.5,0.001]
[1760023634340,5.949438,4326.6,4326.5,0.001]
[1760023634712,5.45108368,4326.6,4326.5,0.001]
[1760023635109,5.94546361,4326.6,4326.5,0.001]
[1760023635539,5.45108368,4326.6,4326.5,0.001]
[1760023637914,2.0352,4326.6,4326.5,0.001]
[1760023638137,4.23128368,4326.6,4326.5,0.001]
[1760023638828,0.02216332,4326.7,4326.5,0.001]
[1760023639029,0.02216332,4327.3,4326.6,0.1152]
[1760023639230,2.3111136,4327.0,4326.9,0.1152]
[1760023639428,2.31102672,4327.1,4326.9,0.1152]
[1760023639632,2.33323334,4327.0,4326.9,0.1152]
[1760023640639,2.31127202,4326.7,4326.6,0.1152]
[1760023640845,0.1152,4327.3,4326.6,0.36712]
[1760023641036,1.92,4327.5,4326.7,0.0231123]
[1760023641037,0.02216332,4327.5,4326.7,0.0231123]
[1760023641237,0.02216332,4328.2,4326.9,2.31112343]
[1760023641407,3.02675363,4328.9,4327.0,5.3648]
[1760023641743,0.5163757,4328.8,4327.4,2.31080323]
[1760023642041,0.5163757,4328.8,4327.2,2.3109632]
[1760023642042,0.96521238,4328.7,4327.0,3.411]
[1760023642255,2.31080004,4327.6,4327.0,3.411]
[1760023642446,2.31037589,4328.3,4326.9,2.403]
[1760023642447,0.02056332,4327.5,4326.9,5.386]
[1760023642637,2.3108223,4327.5,4326.9,5.386]
[1760023642941,0.02056332,4327.7,4327.0,2.31107002]
[1760023643140,2.31064165,4327.9,4327.1,1.037687]
[1760023643346,0.309,4328.4,4327.1,1.037687]
[1760023643347,0.02056332,4328.0,4327.1,1.33759716]
[1760023643668,2.31037589,4328.3,4327.3,2.31085947]
[1760023643872,2.33101865,4328.2,4327.4,2.58765525]
[1760023644020,0.02056332,4328.2,4327.4,0.2768]
[1760023644617,2.31059682,4327.9,4327.4,0.4082487]
[1760023644812,2.31058629,4328.0,4327.4,0.1314487]
[1760023645049,0.02056332,4327.9,4327.4,0.1314487]
[1760023645728,2.31050635,4328.1,4327.4,0.1314487]
[1760023645934,2.33110485,4328.0,4327.4,0.1314487]
[1760023646567,0.02056332,4328.0,4327.1,1.314487]
[1760023646866,2.33100478,4328.2,4327.2,2.31091804]
[1760023647020,0.49516062,4328.1,4327.1,1.037687]
[1760023647216,0.49516062,4328.1,4326.9,5.386]
[1760023647217,2.31058943,4327.9,4326.9,5.386]
[1760023647413,0.51573025,4327.8,4326.9,5.386]
[1760023647645,0.02056332,4328.1,4327.0,0.2999107]
[1760023647843,2.31046278,4328.2,4327.0,0.2999107]
[1760023647844,0.49542748,4328.0,4327.5,2.31079635]
[1760023648058,0.02136332,4328.0,4327.0,2.31107002]
[1760023648266,0.02136332,4328.5,4327.2,2.31091353]
[1760023648423,2.31051386,4328.1,4327.1,2.58780191]
[1760023648652,2.31058943,4327.9,4327.1,0.2768]
[1760023648871,0.49569645,4327.8,4327.2,2.31095256]
[1760023649054,2.31051106,4328.1,4327.3,2.31090971]
[1760023649251,0.51707577,4328.0,4327.3,0.48987254]
[1760023649457,1.92,4328.3,4327.4,0.02310856]
[1760023649458,0.49571245,4327.9,4327.4,0.02310856]
[1760023649679,0.02136332,4328.4,4327.6,2.31070032]
[1760023649899,2.80637399,4328.3,4327.7,6.577]
[1760023650101,0.4959802,4328.2,4327.7,6.577]
[1760023650303,0.4959802,4328.1,4327.8,2.58739687]
[1760023650600,0.64251695,4328.8,4327.9,0.29990589]
[1760023650782,0.49590118,4328.7,4327.9,0.2768]
[1760023651103,0.002,4329.3,4329.2,2.30989559]
[1760023651279,0.002,4329.3,4329.2,11.56009559]
[1760023651459,0.002,4329.3,4329.2,13.81186604]
[1760023651658,0.002,4329.3,4329.2,2.25177045]
[1760023651956,0.002,4329.3,4329.2,4.376]
[1760023652156,0.002,4329.3,4329.2,4.6462]
[1760023653433,0.002,4329.3,4328.7,0.2702]
[1760023653638,0.002,4329.3,4327.1,0.005]
[1760023653639,2.30990008,4329.2,4328.9,6.576]
[1760023653805,0.02136332,4329.1,4328.7,6.575]
[1760023654125,2.33132461,4329.1,4328.7,6.575]
[1760023654324,0.02136332,4329.1,4328.7,6.575]
[1760023654528,0.02336332,4329.3,4328.7,6.575]
[1760023654839,2.33323684,4329.3,4328.7,6.575]
[1760023654992,2.31187352,4329.3,4328.7,6.575]
[1760023655620,0.002,4329.3,4328.8,0.2702]
[1760023655808,0.002,4329.3,4328.9,0.2702]
[1760023656042,0.002,4329.3,4329.0,0.02310002]
[1760023656227,0.002,4329.3,4328.9,0.2702]
[1760023656389,0.002,4329.3,4329.0,0.2702]
[1760023656596,0.002,4329.3,4329.0,1.30131462]
[1760023656905,0.002,4329.3,4328.7,6.575]
[1760023657105,0.002,4329.3,4329.0,0.2702]
[1760023657941,0.002,4329.3,4328.7,6.575]
[1760023657942,0.002,4329.3,4329.1,0.2702]
[1760023658311,0.002,4329.3,4329.2,0.29329895]
[1760023658905,0.002,4329.3,4329.2,0.2702]
[1760023659320,0.002,4329.3,4328.7,8.88516148]
[1760023659502,0.002,4329.3,4328.7,10.27202902]
[1760023660436,0.002,4329.3,4328.8,2.31010343]
[1760023660654,0.002,4329.3,4328.7,7.96186754]
[1760023660859,0.002,4329.3,4328.8,0.2702]
[1760023661040,0.002,4329.3,4329.2,0.1152]
[1760023662054,0.002,4329.3,4329.2,0.3854]
[1760023662662,0.002,4329.3,4329.2,2.9648408]
[1760023662817,0.002,4329.3,4329.2,0.65494521]
[1760023664119,0.002,4329.3,4329.2,0.38474521]
[1760023664442,0.002,4329.3,4329.2,0.1152]
[1760023664828,0.0012,4329.3,4329.2,0.1152]
[1760023665619,0.0012,4329.3,4329.2,9.0882]
[1760023666025,0.0012,4329.3,4329.2,6.6862]
[1760023666744,2.31104223,4329.3,4329.2,6.6862]
[1760023667344,0.0012,4329.3,4329.2,6.6862]
[1760023668267,0.0012,4329.3,4329.2,6.9564]
[1760023668889,2.31104223,4329.3,4329.2,6.6862]
[1760023669185,0.0012,4329.3,4329.2,6.6862]
[1760023669354,2.80671895,4329.3,4329.2,6.6862]
[1760023669726,0.49687672,4329.3,4329.2,6.6862]
[1760023670039,0.0012,4329.3,4329.2,6.6862]
[1760023670243,0.0012,4329.3,4329.2,6.9564]
[1760023670467,0.0012,4329.3,4329.2,8.12324453]
[1760023673435,0.0012,4329.3,4329.2,6.9564]
[1760023674869,2.31104223,4329.3,4329.2,6.6862]
[1760023675075,2.80744158,4329.3,4329.2,6.6862]
[1760023675372,0.49759935,4329.3,4329.2,6.6862]
[1760023678175,2.80744158,4329.3,4329.2,0.1152]
[1760023678497,3.42659521,4329.3,4329.2,6.6862]
[1760023678793,3.38126962,4329.3,4329.2,6.6862]
[1760023678953,3.42914253,4329.3,4329.2,6.6862]
[1760023679391,2.80744158,4329.3,4329.2,6.6862]
[1760023680049,0.49759935,4329.3,4329.2,6.6862]
[1760023680260,2.80744158,4329.3,4329.2,6.6862]
[1760023680449,2.80744158,4329.3,4329.2,0.1152]
[1760023680648,2.80744158,4329.3,4328.8,0.001]
[1760023680649,3.84195078,4329.3,4328.8,0.001]
[1760023680843,2.31000231,4329.0,4328.8,0.001]
[1760023681093,4.07343687,4328.9,4328.8,0.001]
[1760023681240,5.18571834,4328.9,4328.8,0.001]
[1760023681571,5.18571834,4328.9,4328.4,0.001]
[1760023681572,2.31026914,4328.5,4328.4,0.001]
[1760023681759,17.57011969,4328.5,4328.4,0.001]
[1760023681961,17.54875637,4328.5,4328.4,0.001]
[1760023682411,17.98665637,4328.5,4328.4,0.001]
[1760023683452,19.22998711,4328.5,4328.4,0.001]
[1760023685064,18.79208711,4328.5,4328.4,0.001]
[1760023685265,17.12909006,4328.5,4328.4,0.001]
[1760023687094,4.72666849,4328.5,4328.4,0.001]
[1760023687256,5.16456849,4328.5,4328.4,0.001]
[1760023687457,4.72666849,4328.5,4328.4,0.001]
[1760023687658,5.16456849,4328.5,4328.4,0.001]
[1760023687856,6.97843894,4328.5,4328.4,0.001]
[1760023688151,6.97763894,4328.5,4328.4,0.001]
[1760023688382,14.37701389,4328.5,4328.4,0.001]
[1760023688790,8.24291389,4328.5,4328.4,0.001]
[1760023688992,5.55324344,4328.5,4328.4,0.001]
[1760023689192,2.80586849,4328.5,4328.4,0.001]
[1760023689367,3.44766649,4328.5,4328.4,0.001]
[1760023689567,2.82723181,4328.5,4328.4,0.001]
[1760023690591,3.4475801,4328.5,4328.4,0.001]
[1760023692495,2.82723181,4328.5,4328.4,0.001]
[1760023692682,2.80586849,4328.5,4328.4,0.001]
[1760023693393,2.82723181,4328.5,4328.4,0.001]
[1760023693596,11.8824575,4328.5,4328.4,0.001]
[1760023693815,11.24074589,4328.5,4328.4,0.001]
[1760023694013,10.74074589,4328.5,4328.4,0.001]
[1760023694172,11.3610599,4328.5,4328.4,0.001]
[1760023694372,8.87786849,4328.5,4328.4,0.001]
[1760023696399,9.31576849,4328.5,4328.4,0.001]
[1760023697438,8.87786849,4328.5,4328.4,0.001]
[1760023699826,9.31576849,4328.5,4328.4,0.001]
[1760023700333,9.9360825,4328.5,4328.4,0.001]
[1760023700491,14.74145295,4328.5,4328.4,0.001]
[1760023700692,14.12113894,4328.5,4328.4,0.001]
[1760023701107,4.86392252,4328.4,4328.3,0.001]
[1760023701428,5.36032187,4328.4,4328.3,0.001]
[1760023701631,5.36032187,4328.4,4327.5,0.001]
[1760023701632,2.9443496,4327.6,4327.5,0.001]
[1760023701926,2.9443496,4327.6,4327.1,0.005]
[1760023701927,4.8645632,4327.2,4327.1,1e-08]
[1760023702129,13.17446246,4327.2,4327.1,1e-08]
[1760023702442,13.17446246,4327.2,4326.1,0.1202]
[1760023702443,0.6336,4327.1,4326.1,0.005]
[1760023702746,16.82935183,4326.7,4326.1,0.005]
[1760023702945,26.29975118,4326.7,4326.1,0.005]
[1760023703097,28.98942163,4326.7,4326.1,0.005]
[1760023703298,30.22936322,4326.7,4326.1,0.005]
[1760023703538,9.29084165,4326.7,4326.1,0.005]
[1760023703708,26.73965118,4326.7,4326.1,0.005]
[1760023704745,12.37212961,4326.7,4326.1,0.005]
[1760023708018,13.19888969,4326.7,4326.1,0.005]
[1760023708464,2.94509738,4326.2,4326.1,1e-08]
[1760023708667,22.00138162,4326.2,4326.1,1e-08]
[1760023708896,25.50874969,4326.2,4326.1,1e-08]
[1760023709192,24.68248875,4326.2,4326.1,1e-08]
[1760023709393,25.50874969,4326.2,4326.1,1e-08]
[1760023709594,24.68248875,4326.2,4326.1,1e-08]
[1760023709900,25.50874969,4326.2,4326.1,1e-08]
[1760023710303,26.60248875,4326.2,4326.1,1e-08]
[1760023710504,26.71835454,4326.2,4326.1,1e-08]
[1760023710862,27.95776696,4326.2,4326.1,1e-08]
[1760023711070,27.95696696,4326.2,4326.1,1e-08]
[1760023711384,26.71755454,4326.2,4326.1,1e-08]
[1760023711878,27.17542139,4326.2,4326.1,1e-08]
[1760023712588,2.31203181,4325.2,4325.1,0.005]
[1760023712749,23.92291605,4325.2,4325.1,0.005]
[1760023712949,24.9864889,4325.2,4325.1,0.005]
[1760023714147,25.81185881,4325.2,4325.1,0.005]
[1760023714347,24.9864889,4325.2,4325.1,0.005]
[1760023714947,0.49639935,4325.2,4325.1,0.005]
[1760023715450,0.02136332,4325.3,4325.1,0.005]
[1760023716191,0.494531,4325.2,4325.1,0.005]
[1760023716349,0.49448969,4325.2,4325.1,0.005]
[1760023716547,0.49448562,4325.2,4325.1,0.005]
[1760023717296,6.42436332,4325.6,4325.1,0.005]
[1760023717516,0.49446122,4325.5,4325.1,0.005]
[1760023717687,0.49446122,4325.4,4325.1,0.005]
[1760023717987,0.02136332,4325.7,4325.1,0.23672076]
[1760023718150,0.49443019,4325.6,4325.1,0.005]
[1760023718354,0.49445614,4325.5,4325.2,0.1152]
[1760023718552,2.33314077,4325.7,4325.2,0.1152]
[1760023718784,0.49446281,4325.6,4325.2,0.1152]
[1760023719052,0.49446281,4325.5,4325.2,0.1152]
[1760023719372,0.02136332,4325.7,4325.2,0.36074552]
[1760023719373,2.31193172,4325.4,4325.2,0.36074552]
[1760023719573,2.31193172,4325.4,4325.2,0.1152]
[1760023719888,0.02136332,4325.6,4325.2,0.1152]
[1760023719889,2.33322521,4325.6,4325.2,0.1152]
[1760023720089,0.49454041,4325.5,4325.2,0.1152]
[1760023720304,2.31197835,4325.3,4325.2,0.1152]